bitfinex/quotes_SOLUSD_20251024
["timestamp","ask_amount","ask_price","bid_price","bid_amount"]
[1761313165473,22.88,192.5,192.38,12.99444416]
[1761313165671,26.96,192.49,192.4,7.79262824]
[1761313165875,7.79262824,192.47,192.39,0.51977753]
[1761313166081,39.3,192.48,192.37,0.67]
[1761313166082,22.88,192.43,192.37,1.18983157]
[1761313166290,62.18,192.43,192.34,0.51991265]
[1761313166466,10.87647521,192.56,192.42,7.79262824]
[1761313166655,10.87647521,192.56,192.38,0.67]
[1761313166656,7.79262824,192.5,192.38,0.67]
[1761313166854,7.79262824,192.48,192.39,0.67]
[1761313167055,27.98,192.49,192.39,0.67]
[1761313167056,10.87647521,192.47,192.41,7.79262824]
[1761313167291,39.32,192.49,192.42,0.67]
[1761313167461,39.32,192.51,192.48,7.79262824]
[1761313167773,39.32,192.52,192.45,22.88]
[1761313167962,39.32,192.51,192.45,22.88]
[1761313168163,39.38,192.56,192.46,23.55]
[1761313168365,39.38,192.56,192.46,28.07585807]
[1761313168568,39.38,192.56,192.47,0.67]
[1761313168764,31.74,192.67,192.55,7.79262824]
[1761313169103,7.79262824,192.62,192.49,22.88]
[1761313169295,7.79262824,192.59,192.52,0.67]
[1761313169591,10.87647521,192.57,192.52,0.67]
[1761313169801,22.88,192.64,192.56,7.79262824]
[1761313170086,58.18910345,192.63,192.57,7.79262824]
[1761313170295,47.31262824,192.63,192.58,5.19264721]
[1761313170489,39.54,192.62,192.59,7.79262824]
[1761313170676,31.74,192.67,192.59,7.79262824]
[1761313170677,39.54,192.61,192.59,7.79262824]
[1761313170880,39.54,192.61,192.53,8.31202781]
[1761313170881,10.87647521,192.59,192.5,5.85480519]
[1761313171081,7.79262824,192.57,192.51,7.79262824]
[1761313171594,39.58,192.56,192.54,7.79262824]
[1761313171770,39.58,192.56,192.55,0.66]
[1761313171771,39.56,192.56,192.55,0.66]
[1761313172087,39.56,192.57,192.55,8.45262824]
[1761313172293,39.56,192.57,192.54,5.19372597]
[1761313172507,39.56,192.57,192.52,0.66]
[1761313172678,47.35262824,192.57,192.53,0.66]
[1761313174171,39.56,192.57,192.53,0.66]
[1761313174372,39.56,192.57,192.54,5.19372597]
[1761313174599,31.12,192.67,192.56,7.79262824]
[1761313174806,7.79262824,192.63,192.57,8.46262824]
[1761313175070,7.79262824,192.62,192.57,0.67]
[1761313175310,39.52,192.61,192.57,0.67]
[1761313175492,39.52,192.61,192.58,0.67]
[1761313176067,1.12,192.6,192.53,0.67]
[1761313176302,7.79262824,192.55,192.51,0.67]
[1761313176486,1.12,192.6,192.51,0.67]
[1761313176487,47.31262824,192.56,192.51,5.86441352]
[1761313176873,7.79262824,192.55,192.52,0.67]
[1761313177175,7.79262824,192.53,192.47,5.19537318]
[1761313177376,7.79262824,192.48,192.43,5.19651002]
[1761313177587,47.29262824,192.47,192.43,5.86651002]
[1761313178111,39.5,192.47,192.39,0.67]
[1761313178311,7.79262824,192.43,192.39,5.86773333]
[1761313178607,7.79262824,192.43,192.39,0.67]
[1761313178778,7.79262824,192.42,192.39,5.8677416]
[1761313178978,39.48,192.44,192.39,5.8677416]
[1761313179202,47.27262824,192.44,192.4,0.67]
[1761313179377,47.27262824,192.44,192.39,5.1977416]
[1761313179378,7.79262824,192.42,192.39,5.1977416]
[1761313180088,7.79262824,192.4,192.37,5.19829918]
[1761313180286,7.79262824,192.41,192.37,5.19829918]
[1761313180478,7.79262824,192.41,192.36,5.86858598]
[1761313180677,39.56,192.43,192.36,18.86505094]
[1761313180895,47.35262824,192.43,192.37,8.46262824]
[1761313181113,39.56,192.43,192.38,0.67]
[1761313181281,39.56,192.43,192.38,8.46262824]
[1761313181579,7.79262824,192.41,192.36,5.19858598]
[1761313181784,7.79262824,192.4,192.36,5.19858598]
[1761313181978,0.62,192.42,192.36,5.19858598]
[1761313182179,7.79262824,192.39,192.36,5.19858598]
[1761313182376,7.79262824,192.4,192.36,5.19858598]
[1761313182580,7.79262824,192.4,192.35,0.67]
[1761313182581,39.56,192.43,192.35,5.19885625]
[1761313182981,39.56,192.43,192.35,5.86885625]
[1761313183395,7.79262824,192.39,192.35,5.86885625]
[1761313183590,22.88,192.45,192.37,7.79262824]
[1761313183899,7.79262824,192.43,192.37,7.79262824]
[1761313184216,47.31262824,192.44,192.38,8.46262824]
[1761313184416,39.52,192.44,192.39,8.46262824]
[1761313184588,39.52,192.44,192.4,5.19750519]
[1761313184909,39.52,192.44,192.41,8.46262824]
[1761313185091,39.52,192.44,192.41,0.67]
[1761313185408,39.54,192.5,192.43,7.79262824]
[1761313185582,7.79262824,192.49,192.44,0.67]
[1761313185788,0.5,192.49,192.44,0.67]
[1761313185996,0.5,192.49,192.44,8.46262824]
[1761313186198,8.29262824,192.49,192.44,0.67]
[1761313186510,7.79262824,192.45,192.35,0.67]
[1761313186681,47.31262824,192.44,192.37,7.79262824]
[1761313186885,7.79262824,192.42,192.36,7.79262824]
[1761313187092,39.52,192.44,192.35,0.67]
[1761313187488,7.79262824,192.43,192.35,0.67]
[1761313187688,7.79262824,192.42,192.35,0.67]
[1761313187908,0.62,192.43,192.35,0.67]
[1761313188110,7.79262824,192.4,192.35,0.67]
[1761313188316,39.54,192.39,192.35,0.67]
[1761313188610,39.54,192.39,192.34,12.9916991]
[1761313188786,39.54,192.39,192.34,13.6616991]
[1761313188984,47.33262824,192.39,192.3,22.88]
[1761313189185,7.79262824,192.34,192.3,5.20007468]
[1761313189393,39.52,192.34,192.28,0.67]
[1761313189587,7.79262824,192.33,192.29,12.32805299]
[1761313189807,39.52,192.34,192.3,5.870208]
[1761313190115,39.52,192.33,192.3,0.67]
[1761313190424,0.62,192.41,192.29,25.32113659]
[1761313190425,39.52,192.35,192.29,25.32113659]
[1761313190721,39.54,192.34,192.29,37.8223327]
[1761313190889,39.62,192.33,192.29,37.8223327]
[1761313191211,39.62,192.33,192.29,29.35970446]
[1761313191394,47.41262824,192.33,192.29,29.35970446]
[1761313191586,22.88,192.4,192.32,7.79262824]
[1761313191915,39.6,192.39,192.33,0.67]
[1761313192118,47.39262824,192.39,192.29,29.35970446]
[1761313192297,7.79262824,192.37,192.31,7.79262824]
[1761313192498,47.39262824,192.39,192.31,18.1997816]
[1761313192717,47.39262824,192.39,192.33,7.79262824]
[1761313193193,7.79262824,192.37,192.32,0.67]
[1761313193525,7.79262824,192.38,192.32,8.46262824]
[1761313193733,39.6,192.39,192.32,0.67]
[1761313194020,39.6,192.39,192.33,7.79262824]
[1761313194021,47.39262824,192.39,192.33,7.79262824]
[1761313194236,47.39262824,192.39,192.32,0.67]
[1761313194237,7.79262824,192.38,192.32,8.46262824]
[1761313194397,39.6,192.39,192.33,7.79262824]
[1761313194595,47.39262824,192.39,192.34,5.19912654]
[1761313194823,47.39262824,192.39,192.34,5.86912654]
[1761313195116,7.79262824,192.38,192.34,18.1969429]
[1761313195326,47.39262824,192.39,192.35,0.67]
[1761313195625,39.6,192.39,192.35,0.67]
[1761313196724,39.6,192.39,192.36,5.19858598]
[1761313197106,47.39262824,192.39,192.36,5.19858598]
[1761313197412,47.39262824,192.39,192.34,12.99781636]
[1761313197413,39.54,192.38,192.34,5.19912654]
[1761313197615,39.54,192.38,192.34,5.87912654]
[1761313197992,39.54,192.38,192.34,5.19912654]
[1761313198336,47.33262824,192.38,192.32,22.88]
[1761313198622,7.79262824,192.34,192.29,11.15805299]
[1761313198805,7.79262824,192.38,192.32,7.79262824]
[1761313199009,39.5,192.37,192.33,7.79262824]
[1761313199211,39.5,192.37,192.34,7.79262824]
[1761313199414,39.48,192.37,192.36,7.79262824]
[1761313199800,39.48,192.37,192.36,0.68]
[1761313200000,39.48,192.38,192.36,0.68]
[1761313200200,0.62,192.48,192.37,7.79262824]
[1761313200434,0.62,192.48,192.36,0.68]
[1761313200435,40.1,192.47,192.41,7.79262824]
[1761313200607,40.1,192.47,192.39,5.19777535]
[1761313200608,11.18834764,192.46,192.39,5.19777535]
[1761313200814,11.80834764,192.46,192.4,7.79262824]
[1761313201205,7.79262824,192.44,192.39,5.19777535]
[1761313201407,7.79262824,192.44,192.35,0.68]
[1761313201408,7.79262824,192.4,192.33,0.68]
[1761313201611,39.46,192.39,192.34,7.79262824]
[1761313202036,39.46,192.39,192.35,8.47262824]
[1761313202205,7.79262824,192.42,192.36,7.79262824]
[1761313202406,4.25640089,192.47,192.36,7.79262824]
[1761313202407,39.42,192.41,192.39,7.79262824]
[1761313202637,7.79262824,192.45,192.4,5.19750519]
[1761313202941,39.42,192.44,192.42,7.79262824]
[1761313203111,39.42,192.44,192.4,5.19750519]
[1761313203112,39.42,192.44,192.41,0.68]
[1761313203442,0.62,192.52,192.43,7.79262824]
[1761313203649,7.79262824,192.5,192.43,7.79262824]
[1761313203939,11.19462921,192.5,192.44,7.79262824]
[1761313204183,3.40200097,192.5,192.44,7.79262824]
[1761313204651,3.40200097,192.5,192.44,5.19642485]
[1761313204812,3.40200097,192.5,192.45,0.68]
[1761313205015,3.40200097,192.5,192.46,7.79262824]
[1761313205213,3.40200097,192.49,192.47,7.79262824]
[1761313205431,3.40200097,192.5,192.48,7.79262824]
[1761313205639,39.5,192.54,192.49,7.79262824]
[1761313205840,39.5,192.54,192.52,22.88]
[1761313206010,39.5,192.54,192.53,8.47262824]
[1761313206216,39.5,192.54,192.53,7.79262824]
[1761313206437,39.5,192.54,192.5,22.88]
[1761313206637,39.5,192.54,192.52,5.19426553]
[1761313207215,39.5,192.54,192.53,7.79262824]
[1761313207441,39.5,192.54,192.53,23.56]
[1761313207610,39.5,192.54,192.53,31.35262824]
[1761313208023,4.25640089,192.63,192.53,31.35262824]
[1761313208243,0.62,192.65,192.58,7.79262824]
[1761313208244,42.88216246,192.62,192.58,7.79262824]
[1761313208439,3.42216246,192.61,192.59,7.79262824]
[1761313208650,39.46,192.62,192.55,22.88]
[1761313208651,3.42216246,192.6,192.56,5.19318653]
[1761313208829,4.25640089,192.63,192.56,5.19318653]
[1761313208830,3.42216246,192.59,192.56,5.87318653]
[1761313209029,49.30285631,192.63,192.58,22.88]
[1761313209241,11.49336693,192.62,192.55,6.28645542]
[1761313209537,7.68254753,192.61,192.57,5.60645542]
[1761313209743,3.42614664,192.6,192.57,5.60645542]
[1761313209938,3.42614664,192.59,192.57,6.28645542]
[1761313210136,3.42614664,192.58,192.57,6.28645542]
[1761313210328,3.42614664,192.58,192.56,5.60645542]
[1761313210525,3.42614664,192.57,192.56,5.60645542]
[1761313210725,3.42614664,192.57,192.56,5.19318653]
[1761313211463,3.42614664,192.57,192.56,34.35964195]
[1761313211625,5.60363727,192.65,192.58,22.88]
[1761313211626,3.42916958,192.59,192.58,22.88]
[1761313211938,19.46,192.68,192.58,24.07926472]
[1761313212140,19.46,192.68,192.59,23.56]
[1761313212520,19.46,192.68,192.6,0.68]
[1761313212821,19.46,192.68,192.61,5.19183842]
[1761313213026,5.60645542,192.63,192.61,5.19183842]
[1761313213241,0.62,192.67,192.61,5.19183842]
[1761313213242,5.60645542,192.64,192.61,5.19183842]
[1761313213442,5.60645542,192.65,192.61,5.19183842]
[1761313214029,6.22645542,192.65,192.61,5.19183842]
[1761313214230,20.08,192.68,192.61,5.19183842]
[1761313214547,5.60645542,192.66,192.61,5.19183842]
[1761313214749,5.60645542,192.66,192.58,22.88]
[1761313214750,5.60645542,192.64,192.58,22.88]
[1761313215055,5.60645542,192.64,192.51,5.60645542]
[1761313215056,3.80354008,192.63,192.51,5.60645542]
[1761313215229,40.0,192.62,192.55,22.88]
[1761313215552,40.0,192.62,192.54,5.60645542]
[1761313215729,40.0,192.62,192.48,6.12598991]
[1761313215730,39.4,192.61,192.56,5.60645542]
[1761313216153,5.60645542,192.6,192.54,6.28645542]
[1761313216351,40.02,192.61,192.54,0.68]
[1761313216533,5.60645542,192.59,192.54,0.68]
[1761313216735,39.4,192.61,192.52,0.68]
[1761313216943,5.60645542,192.57,192.53,28.07399574]
[1761313217148,5.60645542,192.56,192.53,5.19399574]
[1761313217528,0.62,192.6,192.53,5.19399574]
[1761313217848,39.4,192.61,192.55,5.60645542]
[1761313218155,5.60645542,192.6,192.55,5.60645542]
[1761313218542,5.60645542,192.6,192.56,0.68]
[1761313218837,0.6,192.59,192.57,5.19291686]
[1761313219230,0.6,192.59,192.58,0.68]
[1761313219425,0.6,192.59,192.58,6.28645542]
[1761313219627,0.6,192.59,192.57,10.79937228]
[1761313219827,39.36,192.64,192.57,5.19291686]
[1761313219828,39.98,192.64,192.57,5.19291686]
[1761313220151,39.36,192.64,192.57,5.19291686]
[1761313220342,5.60645542,192.61,192.57,5.19291686]
[1761313220653,5.60645542,192.66,192.6,5.60645542]
[1761313220845,5.60645542,192.65,192.61,5.19183842]
[1761313221030,45.04645542,192.65,192.61,5.19183842]
[1761313221225,39.44,192.65,192.62,0.68]
[1761313221446,39.44,192.65,192.62,6.28645542]
[1761313221849,39.44,192.65,192.62,0.68]
[1761313222156,39.44,192.65,192.62,6.28645542]
[1761313222354,39.44,192.65,192.63,5.60645542]
[1761313222652,39.44,192.65,192.62,6.28645542]
[1761313222842,39.44,192.65,192.62,0.68]
[1761313223041,39.44,192.65,192.59,28.07213103]
[1761313223250,39.44,192.65,192.6,6.28645542]
[1761313223564,39.44,192.65,192.61,6.28645542]
[1761313223740,39.44,192.65,192.62,5.60645542]
[1761313224070,39.44,192.65,192.59,28.07213103]
[1761313224071,6.22645542,192.64,192.59,28.07213103]
[1761313224231,5.60645542,192.63,192.59,28.07213103]
[1761313224746,0.6,192.64,192.59,28.07213103]
[1761313225255,5.60645542,192.63,192.59,28.07213103]
[1761313225436,5.60645542,192.62,192.59,28.07213103]
[1761313226178,5.60645542,192.62,192.59,5.19213103]
[1761313226472,5.60645542,192.62,192.57,12.98222786]
[1761313226473,5.60645542,192.6,192.57,5.19287723]
[1761313226676,39.32,192.6,192.55,11.47991166]
[1761313226827,0.6,192.64,192.56,5.60645542]
[1761313227028,0.6,192.64,192.59,5.60645542]
[1761313227257,0.6,192.64,192.6,0.68]
[1761313227752,5.70645542,192.64,192.6,0.68]
[1761313227943,0.1,192.64,192.6,0.68]
[1761313228142,5.70645542,192.64,192.57,18.85520901]
[1761313228348,5.70645542,192.64,192.58,6.28645542]
[1761313228555,5.60645542,192.64,192.59,5.60645542]
[1761313228737,5.60645542,192.64,192.58,0.68]
[1761313229056,39.92,192.65,192.59,5.19237758]
[1761313229357,5.60645542,192.62,192.59,5.19237758]
[1761313229751,0.62,192.64,192.59,5.19237758]
[1761313229956,5.60645542,192.6,192.57,22.88]
[1761313230164,44.84645542,192.59,192.55,5.19345624]
[1761313230337,5.60645542,192.59,192.55,5.19345624]
[1761313230536,5.60645542,192.58,192.55,5.19345624]
[1761313230740,5.60645542,192.56,192.55,5.19345624]
[1761313231147,39.22,192.56,192.48,0.71]
[1761313231348,5.60645542,192.51,192.48,0.71]
[1761313231636,5.60645542,192.51,192.49,22.88]
[1761313231836,5.60645542,192.52,192.49,22.88]
[1761313232054,39.22,192.56,192.5,0.71]
[1761313232262,5.60645542,192.54,192.5,0.71]
[1761313232637,5.60645542,192.53,192.48,5.60645542]
[1761313232851,5.60645542,192.53,192.48,6.31645542]
[1761313233158,5.60645542,192.52,192.49,5.19507506]
[1761313233362,5.60645542,192.52,192.49,5.90507506]
[1761313233542,39.22,192.56,192.49,5.19507506]
[1761313233745,5.60645542,192.51,192.49,5.19507506]
[1761313234138,5.60645542,192.52,192.49,5.19507506]
[1761313234463,5.60645542,192.5,192.49,5.19507506]
[1761313234941,5.60645542,192.51,192.49,5.90507506]
[1761313235139,0.62,192.55,192.49,5.19507506]
[1761313235339,39.84,192.56,192.49,5.19507506]
[1761313235651,39.84,192.56,192.49,18.18276273]
[1761313235853,5.60645542,192.54,192.5,0.71]
[1761313236053,39.22,192.56,192.5,0.71]
[1761313236252,5.60645542,192.54,192.5,0.71]
[1761313237260,5.60645542,192.55,192.51,18.18087371]
[1761313237455,39.22,192.56,192.52,0.71]
[1761313237456,44.82645542,192.56,192.52,0.71]
[1761313237650,39.22,192.56,192.52,0.71]
[1761313237857,39.22,192.56,192.52,6.31645542]
[1761313238065,5.60645542,192.54,192.51,18.18087371]
[1761313238261,39.84,192.56,192.51,18.18087371]
[1761313238467,5.60645542,192.54,192.51,18.18087371]
[1761313238658,5.60645542,192.55,192.51,18.18087371]
[1761313238853,5.60645542,192.55,192.52,0.71]
[1761313239054,39.22,192.56,192.52,0.71]
[1761313239375,5.60645542,192.59,192.53,23.78544051]
[1761313239551,5.60645542,192.6,192.54,5.60645542]
[1761313239746,39.06,192.61,192.55,5.60645542]
[1761313239953,39.06,192.61,192.56,5.60645542]
[1761313240250,44.66645542,192.61,192.56,6.31645542]
[1761313240450,39.06,192.61,192.57,0.71]
[1761313240661,44.66645542,192.61,192.57,0.71]
[1761313241152,44.66645542,192.61,192.58,18.17426523]
[1761313241454,44.66645542,192.61,192.58,5.19264721]
[1761313241771,39.06,192.61,192.58,18.88426523]
[1761313242849,39.06,192.61,192.58,5.90264721]
[1761313243145,5.60645542,192.59,192.52,5.19426553]
[1761313243350,5.60645542,192.54,192.52,5.19426553]
[1761313243553,10.87647521,192.63,192.52,5.19426553]
[1761313243554,5.60645542,192.55,192.52,5.19426553]
[1761313243767,38.98,192.56,192.52,10.80072095]
[1761313243969,38.98,192.56,192.55,5.60645542]
[1761313244176,38.98,192.6,192.55,6.31645542]
[1761313244369,38.98,192.6,192.55,0.71]
[1761313244669,44.58645542,192.6,192.54,5.60645542]
[1761313245246,44.58645542,192.6,192.55,18.17709685]
[1761313245668,5.60645542,192.58,192.55,18.17709685]
[1761313246045,38.94,192.58,192.55,18.17709685]
[1761313246450,5.60645542,192.57,192.55,18.17709685]
[1761313246647,44.54645542,192.58,192.55,5.19345624]
[1761313246855,44.54645542,192.58,192.56,6.31645542]
[1761313246856,38.94,192.58,192.56,6.31645542]
[1761313247164,38.94,192.58,192.57,5.60645542]
[1761313247389,38.9,192.62,192.58,18.17426523]
[1761313247553,9.43807645,192.61,192.58,5.19264721]
[1761313247753,5.60645542,192.61,192.58,5.19264721]
[1761313248182,3.83594071,192.6,192.58,5.19264721]
[1761313248481,44.50645542,192.62,192.58,5.19264721]
[1761313248657,3.83570449,192.61,192.58,5.19264721]
[1761313248860,3.83570449,192.6,192.58,5.19264721]
[1761313249069,44.50645542,192.62,192.58,5.19264721]
[1761313249386,9.44378201,192.61,192.56,18.17549202]
[1761313249573,3.83732659,192.6,192.56,18.17549202]
[1761313249783,44.50645542,192.62,192.56,24.49194744]
[1761313249985,3.83732508,192.61,192.56,24.49194744]
[1761313250200,44.50645542,192.62,192.56,24.49194744]
[1761313250352,3.84039102,192.61,192.56,18.88549202]
[1761313250559,3.84039102,192.6,192.56,18.17549202]
[1761313250782,3.84039102,192.59,192.56,18.17549202]
[1761313251075,5.60645542,192.61,192.56,18.88549202]
[1761313251379,3.84099002,192.6,192.56,18.88549202]
[1761313251564,3.84099002,192.59,192.56,18.88549202]
[1761313251764,44.50645542,192.62,192.56,24.49194744]
[1761313251960,3.84098975,192.61,192.57,0.71]
[1761313252165,3.84098975,192.6,192.56,18.88549202]
[1761313252367,5.60645542,192.61,192.56,18.88549202]
[1761313252566,3.84161143,192.6,192.56,18.88549202]
[1761313252767,5.60645542,192.61,192.56,18.88549202]
[1761313252973,3.84284067,192.6,192.57,0.71]
[1761313253182,5.60645542,192.61,192.57,0.71]
[1761313253488,38.9,192.62,192.59,23.77977697]
[1761313253663,38.9,192.62,192.59,18.17332155]
[1761313253862,38.9,192.62,192.59,18.88332155]
[1761313255781,38.9,192.62,192.61,28.07183842]
[1761313257573,0.62,192.7,192.61,41.74143449]
[1761313257778,5.60645542,192.64,192.61,41.05143449]
[1761313258087,5.60645542,192.63,192.61,41.05143449]
[1761313259091,44.26645542,192.64,192.61,41.05143449]
[1761313259285,38.66,192.64,192.61,41.74143449]
[1761313259485,38.66,192.64,192.63,5.19129938]
[1761313259789,42.50732529,192.64,192.63,5.19129938]
[1761313260455,42.50806263,192.64,192.63,5.19129938]
[1761313260868,48.73451805,192.64,192.52,25.97089171]
[1761313261077,5.60645542,192.59,192.53,10.80045116]
[1761313261285,44.22645542,192.59,192.54,0.65]
[1761313261496,38.62,192.59,192.57,5.19291686]
[1761313262079,44.22645542,192.59,192.57,5.19291686]
[1761313262489,38.62,192.59,192.57,5.19291686]
[1761313262686,44.22645542,192.59,192.57,5.19291686]
[1761313263588,44.22645542,192.59,192.56,22.78]
[1761313263589,10.07395369,192.58,192.56,22.78]
[1761313263789,12.91637623,192.57,192.45,6.25645542]
[1761313264089,5.60645542,192.51,192.45,6.25645542]
[1761313264390,5.60645542,192.49,192.43,5.60645542]
[1761313264583,3.98052079,192.5,192.38,18.19315936]
[1761313264782,10.87647521,192.48,192.38,18.19315936]
[1761313264978,10.87647521,192.48,192.38,24.44961478]
[1761313264979,5.60645542,192.44,192.38,24.44961478]
[1761313265171,38.56,192.43,192.38,23.79961478]
[1761313265360,38.56,192.43,192.39,0.65]
[1761313265565,38.56,192.43,192.36,0.65]
[1761313265566,5.60645542,192.41,192.36,0.65]
[1761313265872,5.60645542,192.38,192.33,5.19920219]
[1761313266063,38.56,192.38,192.34,5.60645542]
[1761313266394,38.56,192.38,192.37,5.60645542]
[1761313266568,38.56,192.42,192.37,5.60645542]
[1761313266768,0.52,192.48,192.4,22.88]
[1761313266769,38.56,192.43,192.4,22.88]
[1761313267100,38.56,192.44,192.4,5.60645542]
[1761313267291,38.56,192.44,192.38,0.65]
[1761313267600,38.56,192.44,192.43,22.88]
[1761313268900,44.68645542,192.44,192.33,10.80585228]
[1761313269072,5.60645542,192.39,192.33,24.45434445]
[1761313269270,38.6,192.38,192.33,18.84788903]
[1761313269495,44.20645542,192.39,192.33,24.45434445]
[1761313269800,44.20645542,192.39,192.33,23.80434445]
[1761313269969,38.6,192.39,192.34,0.65]
[1761313270165,44.20645542,192.39,192.34,0.65]
[1761313270583,5.60645542,192.38,192.34,0.65]
[1761313270794,7.82939587,192.38,192.34,0.65]
[1761313270987,0.42,192.38,192.33,5.19939686]
[1761313271186,7.82939587,192.36,192.33,5.19939686]
[1761313271366,5.19642485,192.44,192.33,5.19939686]
[1761313271572,7.82939587,192.39,192.35,5.19885625]
[1761313271877,38.56,192.43,192.35,5.19885625]
[1761313271878,38.56,192.38,192.35,5.19885625]
[1761313272085,38.56,192.39,192.35,18.19599687]
[1761313272289,7.82939587,192.38,192.35,5.19885625]
[1761313272692,38.56,192.39,192.36,0.65]
[1761313272896,38.56,192.39,192.36,8.47939587]
[1761313273081,38.56,192.39,192.36,0.65]
[1761313273278,38.56,192.39,192.35,18.19599687]
[1761313273479,12.98610759,192.52,192.38,7.82939587]
[1761313273782,12.98610759,192.52,192.39,18.19221373]
[1761313273783,7.82939587,192.47,192.39,18.19221373]
[1761313274089,11.68798315,192.49,192.43,7.82939587]
[1761313274698,11.68798315,192.49,192.4,0.65]
[1761313274699,38.54,192.5,192.46,7.82939587]
[1761313274995,38.54,192.5,192.44,0.65]
[1761313275513,7.82939587,192.49,192.42,22.88]
[1761313275803,38.54,192.5,192.46,7.82939587]
[1761313275989,38.54,192.5,192.45,5.19615484]
[1761313275990,38.54,192.5,192.49,7.82939587]
[1761313276177,38.54,192.5,192.46,0.65]
[1761313276379,38.54,192.5,192.48,7.82939587]
[1761313276806,38.54,192.5,192.49,7.82939587]
[1761313276991,38.54,192.5,192.48,7.82939587]
[1761313277788,19.62587108,192.49,192.41,5.19705596]
[1761313277999,7.82939587,192.46,192.41,5.19705596]
[1761313278183,7.82939587,192.44,192.39,5.19751722]
[1761313278512,46.28939587,192.45,192.39,5.19751722]
[1761313278699,38.46,192.45,192.39,26.02135147]
[1761313278903,38.46,192.45,192.4,7.82939587]
[1761313279096,46.28939587,192.45,192.39,18.1919556]
[1761313279292,46.28939587,192.45,192.39,4.69751722]
[1761313279609,46.28939587,192.45,192.39,12.52691309]
[1761313280113,7.82939587,192.43,192.39,4.69751722]
[1761313280312,44.07617703,192.45,192.38,5.19801395]
[1761313280490,38.88,192.45,192.38,5.19801395]
[1761313280691,46.28939587,192.45,192.39,7.82939587]
[1761313281307,7.82939587,192.44,192.38,13.67740982]
[1761313282698,7.82939587,192.43,192.38,5.19801395]
[1761313282899,7.82939587,192.42,192.38,5.19801395]
[1761313283092,38.4,192.41,192.38,5.19801395]
[1761313283810,38.4,192.41,192.38,0.65]
[1761313283986,38.4,192.41,192.37,7.82939587]
[1761313284190,38.4,192.41,192.36,5.19841497]
[1761313284401,38.4,192.41,192.37,8.47939587]
[1761313284593,38.4,192.41,192.38,5.19804553]
[1761313284790,38.4,192.41,192.38,5.84804553]
[1761313285010,103.3,192.47,192.4,7.82939587]
[1761313285199,103.3,192.47,192.38,18.19315936]
[1761313285200,7.82939587,192.44,192.38,18.19315936]
[1761313285400,7.82939587,192.45,192.39,7.82939587]
[1761313285600,103.3,192.47,192.39,0.65]
[1761313285795,38.36,192.47,192.45,7.82939587]
[1761313285990,38.36,192.47,192.46,7.82939587]
[1761313286194,38.36,192.47,192.4,8.47939587]
[1761313286423,38.36,192.47,192.46,7.82939587]
[1761313286609,38.36,192.47,192.46,13.02528072]
[1761313286811,38.36,192.47,192.46,13.67528072]
[1761313287495,7.82939587,192.55,192.46,26.66499286]
[1761313287690,38.34,192.54,192.5,7.82939587]
[1761313288112,38.34,192.54,192.47,0.65]
[1761313288113,8.24939587,192.53,192.47,7.82939587]
[1761313288433,8.24939587,192.53,192.46,5.19588485]
[1761313288434,7.82939587,192.51,192.46,5.19588485]
[1761313288604,38.32,192.5,192.46,5.19588485]
[1761313288801,38.32,192.5,192.46,4.69588485]
[1761313289502,46.14939587,192.5,192.46,4.69588485]
[1761313290113,46.56939587,192.5,192.44,13.02574858]
[1761313290499,38.74,192.5,192.44,13.02574858]
[1761313290721,7.82939587,192.49,192.44,5.19635271]
[1761313290919,7.82939587,192.49,192.43,13.02605811]
[1761313291121,7.82939587,192.48,192.43,5.19666224]
[1761313291316,7.82939587,192.47,192.42,5.19694484]
[1761313291506,7.82939587,192.47,192.39,7.82939587]
[1761313291507,7.82939587,192.45,192.39,7.82939587]
[1761313291824,38.28,192.46,192.4,7.82939587]
[1761313292125,38.28,192.46,192.43,7.82939587]
[1761313292419,8.24939587,192.45,192.35,5.19885625]
[1761313292602,7.82939587,192.39,192.35,5.19885625]
[1761313292801,46.06939587,192.38,192.33,12.99840725]